fUSD/lending_fUSD_20250515
["ID","MTS","AMOUNT","RATE_DAILY","PERIOD"]
[361130507,1747295442023,-690.04,0.00011115,2]
[361130508,1747295442033,-471.73596034,0.00011115,2]
[361130509,1747295442042,-400.0,0.00011115,2]
[361130510,1747295442051,-300.95790318,0.00011115,2]
[361130511,1747295442060,-335.37790477,0.00011115,2]
[361130545,1747295442797,-400.0,0.00011114,2]
[361130546,1747295442806,-4102.27101318,0.00011115,2]
[361130547,1747295442853,-42930.29108205,0.00011115,2]
[361130548,1747295442863,-887.02,0.00011115,2]
[361130549,1747295442872,-400.0,0.00011115,2]
[361130550,1747295442881,-614.22,0.00011115,2]
[361130551,1747295442890,-477.87901456,0.00011115,2]
[361130552,1747295442901,-400.0,0.00011115,2]
[361130553,1747295442910,-701.72,0.00011115,2]
[361130554,1747295442919,-400.0,0.00011115,2]
[361130555,1747295442928,-400.0,0.00011115,2]
[361130556,1747295442937,-713.97,0.00011115,2]
[361130557,1747295442947,-745.62,0.00011115,2]
[361130558,1747295442956,-400.0,0.00011115,2]
[361130559,1747295442967,-400.0,0.00011115,2]
[361130560,1747295442976,-781.6,0.00011115,2]
[361130561,1747295442986,-400.0,0.00011115,2]
[361130562,1747295442995,-1125.13,0.00011115,2]
[361130563,1747295443004,-1106.09,0.00011115,2]
[361130564,1747295443014,-1811.67,0.00011115,2]
[361130565,1747295443023,-419.49545189,0.00011115,2]
[361130567,1747295443032,-400.0,0.00011115,2]
[361130568,1747295443041,-400.0,0.00011115,2]
[361130569,1747295443051,-400.0,0.00011115,2]
[361130570,1747295443061,-400.0,0.00011115,2]
[361130571,1747295443071,-408.567842,0.00011115,2]
[361130572,1747295443081,-400.0,0.00011115,2]
[361130573,1747295443095,-400.0,0.00011115,2]
[361130574,1747295443105,-400.0,0.00011115,2]
[361130575,1747295443116,-400.0,0.00011115,2]
[361130576,1747295443125,-400.0,0.00011115,2]
[361130577,1747295443135,-334.19473472,0.00011115,2]
[361130578,1747295443145,-400.0,0.00011115,2]
[361130579,1747295443154,-803.31,0.00011115,2]
[361130580,1747295443164,-473.23622757,0.00011115,2]
[361130581,1747295443174,-400.0,0.00011115,2]
[361130582,1747295443184,-400.0,0.00011115,2]
[361130583,1747295443194,-400.0,0.00011115,2]
[361130584,1747295443207,-1060.61,0.00011115,2]
[361130585,1747295443217,-400.0,0.00011115,2]
[361130586,1747295443227,-414.79782994,0.00011115,2]
[361130587,1747295443237,-1459.21,0.00011115,2]
[361130588,1747295443246,-400.0,0.00011115,2]
[361130589,1747295443256,-400.0,0.00011115,2]
[361130590,1747295443265,-400.0,0.00011115,2]
[361130591,1747295443275,-400.0,0.00011115,2]
[361130592,1747295443285,-400.0,0.00011115,2]
[361130593,1747295443295,-520.31645648,0.00011115,2]
[361130594,1747295443305,-400.0,0.00011115,2]
[361130595,1747295443315,-400.0,0.00011115,2]
[361130596,1747295443325,-725.8,0.00011115,2]
[361130597,1747295443335,-150.0,0.00011115,2]
[361130598,1747295443344,-400.0,0.00011115,2]
[361130599,1747295443354,-466.06,0.00011115,2]
[361130600,1747295443364,-618.92,0.00011115,2]
[361130601,1747295443374,-400.0,0.00011115,2]
[361130602,1747295443383,-400.0,0.00011115,2]
[361130603,1747295443393,-400.0,0.00011115,2]
[361130604,1747295443403,-400.0,0.00011115,2]
[361130605,1747295443412,-400.0,0.00011115,2]
[361130606,1747295443422,-400.0,0.00011115,2]
[361130607,1747295443435,-573.72,0.00011115,2]
[361130608,1747295443445,-400.0,0.00011115,2]
[361130609,1747295443454,-416.93368486,0.00011115,2]
[361130610,1747295443463,-400.0,0.00011115,2]
[361130611,1747295443473,-408.69713458,0.00011115,2]
[361130612,1747295443483,-400.0,0.00011115,2]
[361130613,1747295443492,-983.94,0.00011115,2]
[361130614,1747295443501,-4064.65,0.00011115,2]
[361130615,1747295443511,-1104.53,0.00011115,2]
[361130616,1747295443521,-400.0,0.00011115,2]
[361130617,1747295443530,-400.0,0.00011115,2]
[361130618,1747295443540,-423.25,0.00011115,2]
[361130619,1747295443550,-400.0,0.00011115,2]
[361130620,1747295443560,-164.26958397,0.00011115,2]
[361130621,1747295443569,-400.0,0.00011115,2]
[361130622,1747295443579,-410.5,0.00011115,2]
[361130623,1747295443589,-1219.72,0.00011115,2]
[361130624,1747295443598,-495.63858493,0.00011115,2]
[361130625,1747295443607,-400.0,0.00011115,2]
[361130626,1747295443619,-507.89,0.00011115,2]
[361130627,1747295443629,-461.17,0.00011115,2]
[361130628,1747295443638,-799.19,0.00011115,2]
[361130629,1747295443650,-1592.49,0.00011115,2]
[361130630,1747295443659,-405.30890614,0.00011115,2]
[361130631,1747295443669,-400.0,0.00011115,2]
[361130632,1747295443678,-400.0,0.00011115,2]
[361130633,1747295443688,-400.0,0.00011115,2]
[361130634,1747295443697,-400.0,0.00011115,2]
[361130635,1747295443706,-400.0,0.00011115,2]
[361130636,1747295443716,-470.59,0.00011115,2]
[361130637,1747295443726,-400.0,0.00011115,2]
[361130638,1747295443735,-400.0,0.00011115,2]
[361130639,1747295443745,-400.0,0.00011115,2]
[361130640,1747295443755,-317.44014342,0.00011115,2]
[361130641,1747295443764,-434.03,0.00011115,2]
[361130642,1747295443774,-400.0,0.00011115,2]
[361130643,1747295443783,-400.0,0.00011115,2]
[361130644,1747295443793,-400.0,0.00011115,2]
[361130646,1747295443802,-400.0,0.00011115,2]
[361130648,1747295443811,-400.0,0.00011115,2]
[361130649,1747295443820,-1058.29,0.00011115,2]
[361130650,1747295443830,-400.0,0.00011115,2]
[361130651,1747295443839,-407.91,0.00011115,2]
[361130652,1747295443848,-453.68,0.00011115,2]
[361130653,1747295443857,-563.95,0.00011115,2]
[361130654,1747295443867,-400.0,0.00011115,2]
[361130656,1747295443876,-400.0,0.00011115,2]
[361130657,1747295443885,-456.19706909,0.00011115,2]
[361130659,1747295443895,-400.0,0.00011115,2]
[361130660,1747295443905,-400.0,0.00011115,2]
[361130661,1747295443914,-400.0,0.00011115,2]
[361130662,1747295443924,-402.52,0.00011115,2]
[361130663,1747295443933,-400.0,0.00011115,2]
[361130664,1747295443943,-405.10141891,0.00011115,2]
[361130665,1747295443952,-5652.52,0.00011115,2]
[361130666,1747295443961,-406.43220162,0.00011115,2]
[361130667,1747295443971,-364.11477561,0.00011115,2]
[361130668,1747295443980,-400.0,0.00011115,2]
[361130669,1747295443990,-484.63,0.00011115,2]
[361130670,1747295443999,-456.13043281,0.00011115,2]
[361130671,1747295444009,-400.0,0.00011115,2]
[361130672,1747295444019,-408.84669811,0.00011115,2]
[361130673,1747295444028,-686.33,0.00011115,2]
[361130674,1747295444038,-404.06039777,0.00011115,2]
[361130675,1747295444047,-400.0,0.00011115,2]
[361130676,1747295444057,-405.70650251,0.00011115,2]
[361130677,1747295444066,-400.0,0.00011115,2]
[361130678,1747295444076,-377.21944975,0.00011115,2]
[361130679,1747295444086,-704.26,0.00011115,2]
[361130680,1747295444095,-458.46501168,0.00011115,2]
[361130681,1747295444105,-400.0,0.00011115,2]
[361130682,1747295444114,-5392.35,0.00011115,2]
[361130683,1747295444124,-404.29405727,0.00011115,2]
[361130684,1747295444134,-400.0,0.00011115,2]
[361130685,1747295444143,-400.0,0.00011115,2]
[361130686,1747295444154,-483.83562708,0.00011115,2]
[361130687,1747295444164,-400.0,0.00011115,2]
[361130688,1747295444173,-1091.15,0.00011115,2]
[361130689,1747295444183,-1995.73,0.00011115,2]
[361130690,1747295444193,-462.3093364,0.00011115,2]
[361130691,1747295444202,-407.54994972,0.00011115,2]
[361130692,1747295444212,-537.62351264,0.00011115,2]
[361130693,1747295444222,-482.48,0.00011115,2]
[361130694,1747295444231,-400.0,0.00011115,2]
[361130695,1747295444240,-400.0,0.00011115,2]
[361130696,1747295444250,-3576.18,0.00011115,2]
[361130697,1747295444260,-400.0,0.00011115,2]
[361130698,1747295444269,-896.9,0.00011115,2]
[361130699,1747295444278,-400.0,0.00011115,2]
[361130700,1747295444289,-405.14611853,0.00011115,2]
[361130701,1747295444298,-400.0,0.00011115,2]
[361130702,1747295444307,-400.0,0.00011115,2]
[361130703,1747295444317,-415.56640688,0.00011115,2]
[361130704,1747295444326,-400.0,0.00011115,2]
[361130705,1747295444335,-880.9,0.00011115,2]
[361130706,1747295444345,-517.45,0.00011115,2]
[361130707,1747295444355,-408.73659054,0.00011115,2]
[361130708,1747295444364,-400.0,0.00011115,2]
[361130709,1747295444374,-400.0,0.00011115,2]
[361130710,1747295444383,-851.15,0.00011115,2]
[361130711,1747295444393,-400.0,0.00011115,2]
[361130712,1747295444403,-2973.78,0.00011115,2]
[361130713,1747295444412,-400.0,0.00011115,2]
[361130714,1747295444422,-1000.0,0.00011115,2]
[361130715,1747295444433,-400.0,0.00011115,2]
[361130716,1747295444443,-400.0,0.00011116,2]
[361130717,1747295444452,-1000.0,0.00011116,2]
[361130718,1747295444461,-400.0,0.00011116,2]
[361130719,1747295444471,-400.0,0.00011116,2]
[361130720,1747295444480,-400.0,0.00011116,2]
[361130721,1747295444490,-400.0,0.00011116,2]
[361130722,1747295444500,-400.0,0.00011116,2]
[361130723,1747295444511,-400.0,0.00011116,2]
[361130724,1747295444521,-400.0,0.00011116,2]
[361130725,1747295444531,-400.0,0.00011116,2]
[361130726,1747295444540,-400.0,0.00011116,2]
[361130727,1747295444549,-409.93748259,0.00011116,2]
[361130728,1747295444559,-400.0,0.00011116,2]
[361130729,1747295444568,-453.72630272,0.00011116,2]
[361130730,1747295444577,-401.9382914,0.00011116,2]
[361130731,1747295444587,-400.0,0.00011116,2]
[361130732,1747295444596,-400.0,0.00011116,2]
[361130733,1747295444606,-400.0,0.00011116,2]
[361130734,1747295444615,-400.0,0.00011116,2]
[361130735,1747295444625,-400.0,0.00011116,2]
[361130736,1747295444635,-400.0,0.00011116,2]
[361130737,1747295444644,-400.0,0.00011116,2]
[361130738,1747295444657,-418.19172257,0.00011116,2]
[361130739,1747295444667,-400.0,0.00011116,2]
[361130740,1747295444677,-400.0,0.00011116,2]
[361130741,1747295444686,-400.0,0.00011116,2]
[361130742,1747295444696,-400.0,0.00011116,2]
[361130743,1747295444705,-400.0,0.00011116,2]
[361130744,1747295444715,-400.0,0.00011116,2]
[361130745,1747295444725,-400.0,0.00011116,2]
[361130746,1747295444734,-243.45846954,0.00011116,2]
[361130747,1747295444744,-396.68455024,0.00011116,2]
[361130748,1747295444753,-400.0,0.00011116,2]
[361130749,1747295444763,-400.0,0.00011116,2]
[361130750,1747295444772,-400.0,0.00011116,2]
[361130751,1747295444782,-400.0,0.00011116,2]
[361130752,1747295444792,-400.0,0.00011116,2]
[361130753,1747295444801,-400.0,0.00011116,2]
[361130754,1747295444811,-400.0,0.00011116,2]
[361130755,1747295444821,-400.0,0.00011116,2]
[361130756,1747295444830,-400.0,0.00011116,2]
[361130757,1747295444840,-400.0,0.00011116,2]
[361130758,1747295444850,-400.0,0.00011116,2]
[361130759,1747295444859,-400.0,0.00011116,2]
[361130760,1747295444869,-429.99,0.00011116,2]
[361130761,1747295444878,-400.0,0.00011116,2]
[361130762,1747295444888,-400.0,0.00011116,2]
[361130763,1747295444899,-400.0,0.00011116,2]
[361130764,1747295444909,-400.0,0.00011116,2]
[361130765,1747295444918,-400.0,0.00011116,2]
[361130766,1747295444928,-400.0,0.00011116,2]
[361130767,1747295444938,-400.0,0.00011116,2]
[361130768,1747295444947,-400.0,0.00011116,2]
[361130770,1747295444957,-400.0,0.00011116,2]
[361130771,1747295444966,-400.0,0.00011116,2]
[361130772,1747295444976,-400.0,0.00011116,2]
[361130773,1747295444985,-400.0,0.00011116,2]
[361130774,1747295444994,-400.0,0.00011116,2]
[361130775,1747295445004,-400.0,0.00011116,2]
[361130776,1747295445014,-400.0,0.00011116,2]
[361130777,1747295445024,-400.0,0.00011116,2]
[361130778,1747295445033,-400.0,0.00011116,2]
[361130779,1747295445042,-241.18322288,0.00011116,2]
[361130780,1747295445051,-403.71309084,0.00011116,2]
[361130781,1747295445060,-400.0,0.00011116,2]
[361130782,1747295445070,-545.43164998,0.00011116,2]
[361130783,1747295445079,-400.0,0.00011116,2]
[361130784,1747295445088,-400.0,0.00011116,2]
[361130785,1747295445098,-400.0,0.00011116,2]
[361130786,1747295445107,-400.0,0.00011116,2]
[361130787,1747295445116,-919.98,0.00011116,2]
[361130788,1747295445126,-465.16,0.00011116,2]
[361130789,1747295445135,-986.52,0.00011116,2]
[361130790,1747295445145,-400.0,0.00011116,2]
[361130792,1747295445155,-400.0,0.00011116,2]
[361130793,1747295445388,-416.76505537,0.00011116,2]
[361130794,1747295445398,-400.0,0.00011116,2]
[361130795,1747295445408,-400.0,0.00011116,2]
[361130796,1747295445418,-427.59343024,0.00011116,2]
[361130797,1747295445429,-400.0,0.00011116,2]
[361130798,1747295445439,-310.77879584,0.00011116,2]
[361130800,1747295445448,-400.0,0.00011116,2]
[361130801,1747295445458,-400.0,0.00011116,2]
[361130802,1747295445467,-631.79,0.00011116,2]
[361130803,1747295445478,-408.97158375,0.00011116,2]
[361130804,1747295445487,-400.0,0.00011116,2]
[361130806,1747295445496,-400.0,0.00011116,2]
[361130808,1747295445506,-400.0,0.00011116,2]
[361130810,1747295445517,-400.0,0.00011116,2]
[361130812,1747295445527,-400.0,0.00011116,2]
[361130814,1747295445536,-400.0,0.00011116,2]
[361130816,1747295445546,-400.0,0.00011116,2]
[361130818,1747295445555,-400.0,0.00011116,2]
[361130820,1747295445564,-400.0,0.00011116,2]
[361130822,1747295445574,-400.0,0.00011116,2]
[361130824,1747295445583,-414.17,0.00011116,2]
[361130826,1747295445593,-645.86,0.00011116,2]
[361130828,1747295445603,-400.0,0.00011116,2]
[361130830,1747295445613,-413.21231817,0.00011116,2]
[361130832,1747295445623,-400.0,0.00011116,2]
[361130834,1747295445632,-400.0,0.00011116,2]
[361130836,1747295445641,-176.5964274,0.00011116,2]
[361130837,1747295445652,-400.0,0.00011116,2]
[361130840,1747295445662,-400.0,0.00011116,2]
[361130841,1747295445672,-408.67594167,0.00011116,2]
[361130843,1747295445682,-400.0,0.00011116,2]
[361130845,1747295445693,-400.0,0.00011116,2]
[361130847,1747295445702,-400.0,0.00011116,2]
[361130848,1747295445712,-400.0,0.00011116,2]
[361130849,1747295445723,-571.5,0.00011116,2]
[361130850,1747295445733,-402.51951282,0.00011116,2]
[361130851,1747295445742,-405.1878534,0.00011116,2]
[361130853,1747295445751,-400.0,0.00011116,2]
[361130855,1747295445761,-400.0,0.00011116,2]
[361130857,1747295445771,-400.0,0.00011116,2]
[361130858,1747295445780,-400.0,0.00011116,2]
[361130859,1747295445789,-400.0,0.00011116,2]
[361130860,1747295445799,-400.0,0.00011116,2]
[361130861,1747295445808,-400.0,0.00011116,2]
[361130862,1747295445817,-375.53666517,0.00011116,2]
[361130863,1747295445826,-400.0,0.00011116,2]
[361130864,1747295445835,-401.28014612,0.00011116,2]
[361130865,1747295445845,-400.0,0.00011116,2]
[361130866,1747295445854,-406.72510485,0.00011116,2]
[361130867,1747295445863,-392.65903881,0.00011116,2]
[361130868,1747295445873,-400.0,0.00011116,2]
[361130869,1747295445882,-400.0,0.00011116,2]
[361130870,1747295445892,-593.7,0.00011116,2]
[361130871,1747295445901,-400.0,0.00011116,2]
[361130872,1747295445911,-400.0,0.00011116,2]
[361130873,1747295445920,-400.0,0.00011116,2]
[361130874,1747295445929,-482.78,0.00011116,2]
[361130875,1747295445939,-400.0,0.00011116,2]
[361130876,1747295445948,-400.0,0.00011116,2]
[361130877,1747295445957,-400.0,0.00011116,2]
[361130878,1747295445967,-400.0,0.00011116,2]
[361130879,1747295445976,-400.0,0.00011116,2]
[361130880,1747295445986,-648.1,0.00011116,2]
[361130881,1747295445996,-400.0,0.00011116,2]
[361130882,1747295446005,-400.0,0.00011116,2]
[361130883,1747295446015,-400.0,0.00011116,2]
[361130884,1747295446025,-400.0,0.00011116,2]
[361130885,1747295446034,-358.7379178,0.00011116,2]
[361130886,1747295446043,-436.14,0.00011116,2]
[361130887,1747295446052,-400.0,0.00011116,2]
[361130888,1747295446062,-408.40669442,0.00011116,2]
[361130889,1747295446071,-400.0,0.00011116,2]
[361130890,1747295446080,-430.69964125,0.00011116,2]
[361130891,1747295446090,-400.0,0.00011116,2]
[361130892,1747295446099,-400.0,0.00011116,2]
[361130893,1747295446108,-400.0,0.00011116,2]
[361130894,1747295446119,-424.55494067,0.00011116,2]
[361130896,1747295446128,-403.98417767,0.00011116,2]
[361130898,1747295446138,-400.0,0.00011116,2]
[361130899,1747295446147,-400.0,0.00011116,2]
[361130900,1747295446159,-404.03428082,0.00011116,2]
[361130901,1747295446168,-400.0,0.00011116,2]
[361130902,1747295446177,-400.0,0.00011116,2]
[361130903,1747295446187,-400.0,0.00011116,2]
[361130904,1747295446196,-400.0,0.00011116,2]
[361130905,1747295446206,-400.0,0.00011116,2]
[361130906,1747295446215,-400.0,0.00011116,2]
[361130907,1747295446224,-400.0,0.00011116,2]
[361130908,1747295446233,-400.0,0.00011116,2]
[361130909,1747295446242,-400.0,0.00011116,2]
[361130910,1747295446251,-403.14975626,0.00011116,2]
[361130911,1747295446260,-400.0,0.00011116,2]
[361130912,1747295446269,-400.0,0.00011116,2]
[361130913,1747295446278,-400.0,0.00011116,2]
[361130914,1747295446287,-400.0,0.00011116,2]
[361130915,1747295446297,-400.0,0.00011116,2]
[361130916,1747295446306,-400.0,0.00011116,2]
[361130917,1747295446315,-400.0,0.00011116,2]
[361130918,1747295446324,-419.84160946,0.00011116,2]
[361130919,1747295446333,-400.0,0.00011116,2]
[361130920,1747295446342,-403.71291097,0.00011116,2]
[361130921,1747295446351,-501.65,0.00011116,2]
[361130922,1747295446360,-400.0,0.00011116,2]
[361130923,1747295446369,-400.0,0.00011116,2]
[361130924,1747295446379,-400.0,0.00011116,2]
[361130925,1747295446389,-150.0,0.00011116,2]
[361130926,1747295446399,-668.28,0.00011116,2]
[361130927,1747295446410,-400.0,0.00011116,2]
[361130928,1747295446421,-400.0,0.00011116,2]
[361130929,1747295446432,-400.0,0.00011116,2]
[361130930,1747295446441,-445.9,0.00011116,2]
[361130931,1747295446450,-353.7226173,0.00011116,2]
[361130932,1747295446459,-882.15,0.00011116,2]
[361130933,1747295446468,-400.0,0.00011116,2]
[361130934,1747295446477,-400.0,0.00011116,2]
[361130935,1747295446486,-400.0,0.00011116,2]
[361130936,1747295446495,-400.0,0.00011116,2]
[361130937,1747295446504,-400.0,0.00011116,2]
[361130938,1747295446513,-739.99,0.00011116,2]
[361130939,1747295446522,-400.0,0.00011116,2]
[361130940,1747295446531,-400.0,0.00011116,2]
[361130941,1747295446540,-400.0,0.00011116,2]
[361130942,1747295446549,-400.0,0.00011116,2]
[361130943,1747295446559,-400.0,0.00011116,2]
[361130944,1747295446568,-400.0,0.00011116,2]
[361130945,1747295446576,-400.0,0.00011116,2]
[361130946,1747295446586,-400.0,0.00011116,2]
[361130947,1747295446594,-402.48269288,0.00011116,2]
[361130948,1747295446603,-400.0,0.00011116,2]
[361130949,1747295446613,-400.0,0.00011116,2]
[361130950,1747295446622,-415.65285274,0.00011116,2]
[361130951,1747295446631,-400.0,0.00011116,2]
[361130952,1747295446640,-400.0,0.00011116,2]
[361130953,1747295446650,-400.0,0.00011116,2]
[361130954,1747295446659,-546.47,0.00011116,2]
[361130955,1747295446668,-525.07108593,0.00011116,2]
[361130956,1747295446678,-486.92,0.00011116,2]
[361130957,1747295446687,-418.47816193,0.00011116,2]
[361130958,1747295446696,-400.0,0.00011116,2]
[361130959,1747295446706,-400.0,0.00011116,2]
[361130960,1747295446715,-400.0,0.00011116,2]
[361130961,1747295446724,-400.0,0.00011116,2]
[361130962,1747295446733,-400.0,0.00011116,2]
[361130963,1747295446742,-400.0,0.00011116,2]
[361130964,1747295446752,-400.0,0.00011116,2]
[361130965,1747295446762,-429.27611969,0.00011116,2]
[361130966,1747295446771,-401.04909769,0.00011116,2]
[361130967,1747295446780,-400.0,0.00011116,2]
[361130968,1747295446789,-546.44,0.00011116,2]
[361130969,1747295446799,-403.45233697,0.00011116,2]
[361130970,1747295446809,-411.70344778,0.00011116,2]
[361130971,1747295446819,-400.0,0.00011116,2]
[361130972,1747295446828,-400.0,0.00011116,2]
[361130973,1747295446837,-414.9,0.00011116,2]
[361130974,1747295446847,-400.0,0.00011116,2]
[361130975,1747295446856,-463.29688539,0.00011116,2]
[361130976,1747295446865,-400.0,0.00011116,2]
[361130977,1747295446874,-400.0,0.00011116,2]
[361130978,1747295446883,-400.0,0.00011116,2]
[361130979,1747295446894,-401.41547858,0.00011116,2]
[361130980,1747295446903,-400.0,0.00011116,2]
[361130981,1747295446912,-400.0,0.00011116,2]
[361130982,1747295446923,-400.0,0.00011116,2]
[361130983,1747295446934,-400.0,0.00011116,2]
[361130984,1747295446943,-407.21519421,0.00011116,2]
[361130985,1747295446954,-400.0,0.00011116,2]
[361130986,1747295446964,-1121.74,0.00011116,2]
[361130987,1747295446974,-400.0,0.00011116,2]
[361130988,1747295446983,-400.0,0.00011116,2]
[361130989,1747295446993,-400.0,0.00011116,2]
[361130990,1747295447003,-400.0,0.00011116,2]
[361130991,1747295447013,-611.07,0.00011116,2]
[361130992,1747295447022,-400.0,0.00011116,2]
[361130993,1747295447031,-400.0,0.00011116,2]
[361130994,1747295447041,-400.0,0.00011116,2]
[361130995,1747295447050,-400.31556197,0.00011116,2]
[361130996,1747295447060,-400.0,0.00011116,2]
[361130997,1747295447069,-417.72,0.00011116,2]
[361130998,1747295447079,-925.31,0.00011116,2]
[361130999,1747295447090,-400.0,0.00011116,2]
[361131000,1747295447099,-400.0,0.00011116,2]
[361131001,1747295447109,-400.0,0.00011116,2]
[361131002,1747295447118,-400.0,0.00011116,2]
[361131003,1747295447127,-400.35589496,0.00011116,2]
[361131004,1747295447138,-400.0,0.00011116,2]
[361131005,1747295447147,-730.02,0.00011116,2]
[361131006,1747295447157,-400.0,0.00011116,2]
[361131007,1747295447167,-400.0,0.00011116,2]
[361131008,1747295447177,-400.0,0.00011116,2]
[361131009,1747295447187,-400.0,0.00011116,2]
[361131010,1747295447197,-400.0,0.00011116,2]
[361131011,1747295447207,-400.52300757,0.00011116,2]
[361131012,1747295447217,-400.0,0.00011116,2]
[361131013,1747295447226,-555.15,0.00011116,2]
[361131014,1747295447236,-400.0,0.00011116,2]
[361131015,1747295447245,-400.0,0.00011116,2]
[361131016,1747295447255,-400.0,0.00011116,2]
[361131017,1747295447265,-400.0,0.00011116,2]
[361131018,1747295447274,-400.0,0.00011116,2]
[361131019,1747295447284,-400.0,0.00011116,2]
[361131020,1747295447293,-400.0,0.00011116,2]
[361131021,1747295447303,-400.0,0.00011116,2]
[361131022,1747295447313,-408.88500562,0.00011116,2]
[361131023,1747295447323,-400.0,0.00011116,2]
[361131024,1747295447332,-400.0,0.00011116,2]
[361131025,1747295447342,-400.0,0.00011116,2]
[361131026,1747295447351,-400.0,0.00011116,2]
[361131027,1747295447361,-400.0,0.00011116,2]
[361131028,1747295447370,-400.0,0.00011116,2]
[361131029,1747295447380,-400.0,0.00011116,2]
[361131030,1747295447389,-400.0,0.00011116,2]
[361131031,1747295447399,-400.0,0.00011116,2]
[361131032,1747295447410,-404.39844892,0.00011116,2]
[361131033,1747295447419,-400.0,0.00011116,2]
[361131034,1747295447431,-152.75362308,0.00011116,2]
[361131035,1747295447440,-400.0,0.00011116,2]
[361131036,1747295447449,-2177.43,0.00011116,2]
[361131037,1747295447458,-400.0,0.00011116,2]
[361131038,1747295447468,-1392.3,0.00011116,2]
[361131039,1747295447478,-400.0,0.00011116,2]
[361131040,1747295447488,-436.35,0.00011116,2]
[361131041,1747295447498,-889.86,0.00011116,2]
[361131042,1747295447510,-793.97,0.00011116,2]
[361131043,1747295447521,-400.0,0.00011116,2]
[361131044,1747295447531,-405.87979803,0.00011116,2]
[361131045,1747295447541,-400.0,0.00011116,2]
[361131046,1747295447551,-412.71315308,0.00011116,2]
[361131047,1747295447560,-2544.17,0.00011116,2]
[361131048,1747295447570,-453.27,0.00011116,2]
[361131049,1747295447579,-5271.87,0.00011116,2]
[361131050,1747295447589,-400.0,0.00011116,2]
[361131051,1747295447598,-400.0,0.00011116,2]
[361131052,1747295447608,-400.0,0.00011116,2]
[361131053,1747295447618,-14866.02,0.00011116,2]
[361131054,1747295447627,-400.0,0.00011116,2]
[361131055,1747295447636,-400.0,0.00011116,2]
[361131056,1747295447646,-400.0,0.00011116,2]
[361131057,1747295447657,-449.12,0.00011116,2]
[361131058,1747295447666,-763.86,0.00011116,2]
[361131059,1747295447677,-710.53,0.00011116,2]
[361131060,1747295447687,-400.0,0.00011116,2]
[361131061,1747295447696,-400.0,0.00011116,2]
[361131062,1747295447706,-400.0,0.00011116,2]
[361131063,1747295447716,-4892.61,0.00011116,2]
[361131064,1747295447725,-400.0,0.00011116,2]
[361131065,1747295447735,-466.03,0.00011116,2]
[361131066,1747295447744,-436.47235566,0.00011116,2]
[361131067,1747295447754,-8063.58,0.00011116,2]
[361131068,1747295447763,-778.45,0.00011116,2]
[361131069,1747295447772,-10901.67,0.00011116,2]
[361131070,1747295447782,-400.0,0.00011116,2]
[361131071,1747295447791,-400.0,0.00011116,2]
[361131072,1747295447801,-400.0,0.00011116,2]
[361131073,1747295447811,-630.85,0.00011116,2]